[Event "*** Titled Tuesday Blitz"]
[Site "Chess.com"]
[Date "2020.04.21"]
[Round "7"]
[White "kuba2006"]
[Black "IsikCan"]
[Result "0-1"]
[WhiteElo "2441"]
[BlackElo "2632"]
[TimeControl "180+1"]
[EndTime "11:21:20 PDT"]
[Termination "IsikCan won by checkmate"]

1. e4 {[%clk 0:03:00.9]} 1... c6 {[%clk 0:02:59.7]} 2. d4 {[%clk 0:02:59.7]}
2... d5 {[%clk 0:02:59.9]} 3. e5 {[%clk 0:02:59.5]} 3... Bf5 {[%clk 0:02:59.6]}
4. Nf3 {[%clk 0:02:59.3]} 4... e6 {[%clk 0:03:00]} 5. a3 {[%clk 0:02:59.6]} 5...
c5 {[%clk 0:03:00.2]} 6. c4 {[%clk 0:02:59.6]} 6... dxc4 {[%clk 0:02:59.7]} 7.
Bxc4 {[%clk 0:02:57]} 7... Nc6 {[%clk 0:02:56.9]} 8. Be3 {[%clk 0:02:56.1]} 8...
cxd4 {[%clk 0:02:55.8]} 9. Nxd4 {[%clk 0:02:55.3]} 9... Nge7 {[%clk 0:02:42.9]}
10. O-O {[%clk 0:02:17.1]} 10... Nxd4 {[%clk 0:02:42.3]} 11. Bxd4 {[%clk
0:02:18]} 11... Nc6 {[%clk 0:02:43]} 12. Bb5 {[%clk 0:02:11.7]} 12... Be7 {[%clk
0:02:43.1]} 13. Nc3 {[%clk 0:02:07.5]} 13... O-O {[%clk 0:02:41.6]} 14. Bxc6
{[%clk 0:02:07.8]} 14... bxc6 {[%clk 0:02:42.5]} 15. Be3 {[%clk 0:02:06.6]}
15... a5 {[%clk 0:02:38.6]} 16. Rc1 {[%clk 0:02:01.6]} 16... Rb8 {[%clk
0:02:29.6]} 17. Na4 {[%clk 0:01:58.7]} 17... Be4 {[%clk 0:02:10.8]} 18. Qxd8
{[%clk 0:01:35.6]} 18... Rfxd8 {[%clk 0:02:09]} 19. Bb6 {[%clk 0:01:34.1]} 19...
Rd7 {[%clk 0:01:39.9]} 20. Bxa5 {[%clk 0:01:31.9]} 20... Ra7 {[%clk 0:01:39.1]}
21. b4 {[%clk 0:01:31]} 21... Bd5 {[%clk 0:01:21.9]} 22. Nb6 {[%clk 0:01:24.7]}
22... Rxb6 {[%clk 0:01:07.3]} 23. Bxb6 {[%clk 0:01:24.5]} 23... Rxa3 {[%clk
0:01:08.2]} 24. b5 {[%clk 0:01:24.9]} 24... Rb3 {[%clk 0:00:57.9]} 25. bxc6
{[%clk 0:01:12.8]} 25... Rxb6 {[%clk 0:00:58.8]} 26. c7 {[%clk 0:01:13.2]} 26...
Bb7 {[%clk 0:00:59.1]} 27. Rb1 {[%clk 0:01:11]} 27... Bb4 {[%clk 0:00:50.2]} 28.
Rfd1 {[%clk 0:01:10.4]} 28... g5 {[%clk 0:00:49.6]} 29. Rd4 {[%clk 0:01:06.1]}
29... Bc5 {[%clk 0:00:40.5]} 30. Rd8+ {[%clk 0:01:01.7]} 30... Kg7 {[%clk
0:00:40.6]} 31. Rc1 {[%clk 0:00:57.8]} 31... Ba3 {[%clk 0:00:40.5]} 32. Ra1
{[%clk 0:00:45.3]} 32... Rc6 {[%clk 0:00:40.1]} 33. h3 {[%clk 0:00:36.5]} 33...
Bb2 {[%clk 0:00:40.1]} 34. Rb1 {[%clk 0:00:36.3]} 34... Bxe5 {[%clk 0:00:40]}
35. Rxb7 {[%clk 0:00:35.2]} 35... Rc1+ {[%clk 0:00:39.8]} 36. Rd1 {[%clk
0:00:26.5]} 36... Rxd1# {[%clk 0:00:40.7]} 0-1

[Event "*** Titled Tuesday Blitz"]
[Site "Chess.com"]
[Date "2020.04.21"]
[Round "7"]
[White "grandcoach"]
[Black "Filip_Covic"]
[Result "1-0"]
[WhiteElo "1993"]
[BlackElo "2287"]
[TimeControl "180+1"]
[EndTime "11:21:22 PDT"]
[Termination "grandcoach won by resignation"]

1. e4 {[%clk 0:03:00.9]} 1... c5 {[%clk 0:02:59]} 2. b4 {[%clk 0:03:00.1]} 2...
cxb4 {[%clk 0:02:57.2]} 3. a3 {[%clk 0:03:00.6]} 3... d5 {[%clk 0:02:56.8]} 4.
exd5 {[%clk 0:03:00]} 4... Nf6 {[%clk 0:02:51.9]} 5. axb4 {[%clk 0:02:51.2]}
5... Nxd5 {[%clk 0:02:41.8]} 6. b5 {[%clk 0:02:48.1]} 6... Bf5 {[%clk
0:02:28.6]} 7. Bb2 {[%clk 0:02:39.1]} 7... Nd7 {[%clk 0:02:18]} 8. Nf3 {[%clk
0:02:28.1]} 8... N7f6 {[%clk 0:02:11.5]} 9. Bc4 {[%clk 0:02:23.9]} 9... e6
{[%clk 0:02:11.5]} 10. O-O {[%clk 0:02:23]} 10... Be7 {[%clk 0:02:08.4]} 11. Nc3
{[%clk 0:02:18]} 11... O-O {[%clk 0:02:06.1]} 12. Nxd5 {[%clk 0:02:09.8]} 12...
Nxd5 {[%clk 0:01:59.1]} 13. d3 {[%clk 0:01:52.6]} 13... Bf6 {[%clk 0:01:53.1]}
14. Qc1 {[%clk 0:01:43.4]} 14... Nc3 {[%clk 0:01:34.8]} 15. Re1 {[%clk
0:01:42.1]} 15... Qb6 {[%clk 0:01:23.9]} 16. Ne5 {[%clk 0:01:36.8]} 16... Qd4
{[%clk 0:00:52.9]} 17. Ra3 {[%clk 0:01:16.4]} 17... Bxe5 {[%clk 0:00:19.7]} 18.
Bxc3 {[%clk 0:01:14.8]} 18... Bxh2+ {[%clk 0:00:19.9]} 19. Kxh2 {[%clk
0:01:11.5]} 19... Qxf2 {[%clk 0:00:20.6]} 20. Qg5 {[%clk 0:00:47.1]} 20... f6
{[%clk 0:00:14.5]} 21. Qg3 {[%clk 0:00:45.3]} 21... Qc5 {[%clk 0:00:14.5]} 22.
Rb3 {[%clk 0:00:38.4]} 22... Rfe8 {[%clk 0:00:12]} 23. Bxf6 {[%clk 0:00:29.1]}
23... Bg6 {[%clk 0:00:12.3]} 24. Be5 {[%clk 0:00:23.4]} 1-0

[Event "*** Titled Tuesday Blitz"]
[Site "Chess.com"]
[Date "2020.04.21"]
[Round "7"]
[White "kpio91"]
[Black "wnstop"]
[Result "1-0"]
[WhiteElo "2773"]
[BlackElo "2596"]
[TimeControl "180+1"]
[EndTime "11:21:23 PDT"]
[Termination "kpio91 won on time"]

1. Nf3 {[%clk 0:03:00.9]} 1... Nf6 {[%clk 0:02:59.5]} 2. d4 {[%clk 0:03:00]}
2... g6 {[%clk 0:02:59.5]} 3. g3 {[%clk 0:02:59.8]} 3... Bg7 {[%clk 0:02:59.4]}
4. Bg2 {[%clk 0:03:00.5]} 4... O-O {[%clk 0:02:59.5]} 5. O-O {[%clk 0:03:01.2]}
5... d6 {[%clk 0:02:59.8]} 6. a4 {[%clk 0:03:01.5]} 6... Na6 {[%clk 0:02:56.9]}
7. Nc3 {[%clk 0:02:53.9]} 7... d5 {[%clk 0:02:51.7]} 8. Bf4 {[%clk 0:02:51.6]}
8... Bf5 {[%clk 0:02:40.4]} 9. h3 {[%clk 0:02:50.1]} 9... Qc8 {[%clk 0:02:35]}
10. g4 {[%clk 0:02:42.5]} 10... Bd7 {[%clk 0:02:27.7]} 11. Be5 {[%clk
0:02:32.4]} 11... Nb4 {[%clk 0:02:06.1]} 12. a5 {[%clk 0:02:26.9]} 12... Rd8
{[%clk 0:01:59.8]} 13. Ne1 {[%clk 0:02:11.6]} 13... Be6 {[%clk 0:01:45.5]} 14.
Nd3 {[%clk 0:02:09.2]} 14... Nxd3 {[%clk 0:01:44.4]} 15. Qxd3 {[%clk 0:02:01]}
15... c5 {[%clk 0:01:43.6]} 16. dxc5 {[%clk 0:01:55.6]} 16... Qxc5 {[%clk
0:01:40.3]} 17. Bd4 {[%clk 0:01:55.6]} 17... Qc6 {[%clk 0:01:11.9]} 18. f4
{[%clk 0:01:41.8]} 18... a6 {[%clk 0:00:15.8]} 19. f5 {[%clk 0:01:33.3]} 19...
gxf5 {[%clk 0:00:13.4]} 20. gxf5 {[%clk 0:01:32.4]} 20... Bc8 {[%clk 0:00:06.1]}
21. e3 {[%clk 0:00:55.4]} 21... Kh8 {[%clk 0:00:05.3]} 22. Nxd5 {[%clk
0:00:34.3]} 22... Rxd5 {[%clk 0:00:02.5]} 23. Bxf6 {[%clk 0:00:27.7]} 1-0

[Event "*** Titled Tuesday Blitz"]
[Site "Chess.com"]
[Date "2020.04.21"]
[Round "7"]
[White "starworld123"]
[Black "letsgoband"]
[Result "1-0"]
[WhiteElo "2637"]
[BlackElo "2470"]
[TimeControl "180+1"]
[EndTime "11:21:28 PDT"]
[Termination "starworld123 won by resignation"]

1. e4 {[%clk 0:03:00.9]} 1... e5 {[%clk 0:02:59.4]} 2. Nf3 {[%clk 0:03:00.9]}
2... Nc6 {[%clk 0:02:59.3]} 3. d4 {[%clk 0:03:00.7]} 3... exd4 {[%clk
0:02:58.6]} 4. Nxd4 {[%clk 0:03:01.3]} 4... Bb4+ {[%clk 0:02:58.9]} 5. c3 {[%clk
0:02:59.3]} 5... Bc5 {[%clk 0:02:59.2]} 6. Be3 {[%clk 0:02:58.2]} 6... Bb6
{[%clk 0:02:58.9]} 7. Bc4 {[%clk 0:02:57.1]} 7... d6 {[%clk 0:02:51.5]} 8. O-O
{[%clk 0:02:50.2]} 8... Nf6 {[%clk 0:02:48.4]} 9. Nxc6 {[%clk 0:02:44.9]} 9...
bxc6 {[%clk 0:02:48.1]} 10. Bxb6 {[%clk 0:02:39.7]} 10... axb6 {[%clk 0:02:49]}
11. e5 {[%clk 0:02:40.3]} 11... dxe5 {[%clk 0:02:35.5]} 12. Qxd8+ {[%clk
0:02:41.2]} 12... Kxd8 {[%clk 0:02:36.4]} 13. Bxf7 {[%clk 0:02:42.1]} 13... Ke7
{[%clk 0:02:29.4]} 14. Bb3 {[%clk 0:02:42.5]} 14... Be6 {[%clk 0:02:29.5]} 15.
Nd2 {[%clk 0:02:41.4]} 15... Rhd8 {[%clk 0:02:27.5]} 16. Nf3 {[%clk 0:02:36.2]}
16... Bxb3 {[%clk 0:02:20.3]} 17. axb3 {[%clk 0:02:37.1]} 17... Ke6 {[%clk
0:02:19.5]} 18. Rfe1 {[%clk 0:02:34.8]} 18... Rxa1 {[%clk 0:02:19]} 19. Rxa1
{[%clk 0:02:35.7]} 19... c5 {[%clk 0:02:12.9]} 20. g3 {[%clk 0:01:44.5]} 20...
e4 {[%clk 0:02:11.3]} 21. Ng5+ {[%clk 0:01:42.9]} 21... Kf5 {[%clk 0:02:10.9]}
22. h4 {[%clk 0:01:38.8]} 22... Rd2 {[%clk 0:02:08.8]} 23. Ra7 {[%clk 0:01:39]}
23... e3 {[%clk 0:02:02.5]} 24. fxe3 {[%clk 0:01:37.9]} 24... Kg4 {[%clk
0:02:00.9]} 25. Rxc7 {[%clk 0:01:30.9]} 25... Kxg3 {[%clk 0:01:57.3]} 26. Kf1
{[%clk 0:01:31.2]} 26... Rxb2 {[%clk 0:01:55.9]} 27. Rxg7 {[%clk 0:01:30.4]}
27... Nd5 {[%clk 0:01:09.6]} 28. h5 {[%clk 0:01:24.4]} 28... Nxe3+ {[%clk
0:01:07.3]} 29. Ke1 {[%clk 0:01:24.6]} 29... h6 {[%clk 0:00:58.6]} 30. Ne4+
{[%clk 0:01:18.2]} 30... Kf4 {[%clk 0:00:57.7]} 31. Nd2 {[%clk 0:01:18.2]} 31...
Nf5 {[%clk 0:00:53.6]} 32. Rg6 {[%clk 0:01:09.4]} 32... b5 {[%clk 0:00:52.6]}
33. Rc6 {[%clk 0:01:01.4]} 33... c4 {[%clk 0:00:37.5]} 34. bxc4 {[%clk
0:00:59.3]} 34... bxc4 {[%clk 0:00:38.4]} 35. Rxc4+ {[%clk 0:00:58.6]} 35... Ke3
{[%clk 0:00:29.6]} 36. Rc5 {[%clk 0:00:55.8]} 36... Ng3 {[%clk 0:00:13.4]} 37.
Nc4+ {[%clk 0:00:54.7]} 37... Kd3 {[%clk 0:00:10.8]} 38. Nxb2+ {[%clk
0:00:55.6]} 1-0

[Event "*** Titled Tuesday Blitz"]
[Site "Chess.com"]
[Date "2020.04.21"]
[Round "7"]
[White "crossingthestreet"]
[Black "Budisavljevic"]
[Result "0-1"]
[WhiteElo "2255"]
[BlackElo "2426"]
[TimeControl "180+1"]
[EndTime "11:21:28 PDT"]
[Termination "Budisavljevic won by resignation"]

1. c4 {[%clk 0:02:51.5]} 1... e6 {[%clk 0:02:59.3]} 2. Nc3 {[%clk 0:02:50.8]}
2... Nf6 {[%clk 0:02:58.7]} 3. Nf3 {[%clk 0:02:50.3]} 3... c5 {[%clk 0:02:55.1]}
4. e3 {[%clk 0:02:45.5]} 4... d5 {[%clk 0:02:52.6]} 5. d4 {[%clk 0:02:40.4]}
5... a6 {[%clk 0:02:51.6]} 6. Bd3 {[%clk 0:02:37.3]} 6... dxc4 {[%clk
0:02:50.9]} 7. Bxc4 {[%clk 0:02:36.8]} 7... b5 {[%clk 0:02:50.6]} 8. Be2 {[%clk
0:02:26.3]} 8... Bb7 {[%clk 0:02:48.9]} 9. O-O {[%clk 0:02:25.4]} 9... Nbd7
{[%clk 0:02:48.1]} 10. a4 {[%clk 0:02:20.7]} 10... b4 {[%clk 0:02:44.1]} 11. Nb1
{[%clk 0:02:20.2]} 11... Qc7 {[%clk 0:02:30.7]} 12. Nbd2 {[%clk 0:02:17.9]}
12... Bd6 {[%clk 0:02:30.4]} 13. h3 {[%clk 0:02:12]} 13... O-O {[%clk
0:02:28.1]} 14. Nc4 {[%clk 0:02:02.8]} 14... Be7 {[%clk 0:02:26.1]} 15. b3
{[%clk 0:02:02.8]} 15... Rfd8 {[%clk 0:02:25.3]} 16. Bb2 {[%clk 0:01:57]} 16...
Ne4 {[%clk 0:02:24.8]} 17. Bd3 {[%clk 0:01:51.3]} 17... Ndf6 {[%clk 0:02:21.3]}
18. Qe2 {[%clk 0:01:50.1]} 18... Rac8 {[%clk 0:02:19.9]} 19. Rac1 {[%clk
0:01:49.5]} 19... Qb8 {[%clk 0:02:16.5]} 20. Rfd1 {[%clk 0:01:48.8]} 20... Bd5
{[%clk 0:02:11.6]} 21. Nfe5 {[%clk 0:01:44.3]} 21... Qb7 {[%clk 0:01:35.8]} 22.
f3 {[%clk 0:01:31.4]} 22... Nc3 {[%clk 0:01:29.3]} 23. Bxc3 {[%clk 0:01:31.2]}
23... bxc3 {[%clk 0:01:30.2]} 24. Rxc3 {[%clk 0:01:12.2]} 24... cxd4 {[%clk
0:01:28.9]} 25. exd4 {[%clk 0:01:11]} 25... Qb4 {[%clk 0:01:18.5]} 26. Qe1
{[%clk 0:00:47.9]} 26... Bb7 {[%clk 0:01:16]} 27. Bf1 {[%clk 0:00:44.2]} 27...
Rxd4 {[%clk 0:00:44.4]} 28. Rxd4 {[%clk 0:00:43.1]} 28... Bc5 {[%clk 0:00:44.4]}
29. Qe3 {[%clk 0:00:14.4]} 29... Nd5 {[%clk 0:00:37.8]} 30. Qf2 {[%clk 0:00:11]}
30... Qxc3 {[%clk 0:00:34.6]} 0-1

[Event "*** Titled Tuesday Blitz"]
[Site "Chess.com"]
[Date "2020.04.21"]
[Round "7"]
[White "canhhuan"]
[Black "krasavetc"]
[Result "0-1"]
[WhiteElo "2648"]
[BlackElo "2498"]
[TimeControl "180+1"]
[EndTime "11:21:31 PDT"]
[Termination "krasavetc won by checkmate"]

1. e4 {[%clk 0:03:00.9]} 1... c5 {[%clk 0:02:58.2]} 2. Nc3 {[%clk 0:02:59.7]}
2... d6 {[%clk 0:02:57.9]} 3. g3 {[%clk 0:02:58.7]} 3... Nf6 {[%clk 0:02:58.3]}
4. Bg2 {[%clk 0:02:58.4]} 4... e6 {[%clk 0:02:57.1]} 5. d3 {[%clk 0:02:55.9]}
5... Be7 {[%clk 0:02:58]} 6. f4 {[%clk 0:02:55.7]} 6... O-O {[%clk 0:02:58.9]}
7. Nf3 {[%clk 0:02:56]} 7... Nc6 {[%clk 0:02:59.4]} 8. O-O {[%clk 0:02:55.8]}
8... d5 {[%clk 0:02:58.4]} 9. e5 {[%clk 0:02:46]} 9... Ne8 {[%clk 0:02:57.9]}
10. d4 {[%clk 0:02:34.2]} 10... cxd4 {[%clk 0:02:50.3]} 11. Ne2 {[%clk
0:02:25.2]} 11... Bd7 {[%clk 0:02:35.9]} 12. Nexd4 {[%clk 0:02:23.2]} 12... Rc8
{[%clk 0:02:33.5]} 13. c3 {[%clk 0:02:22.1]} 13... a6 {[%clk 0:02:23.8]} 14. Be3
{[%clk 0:02:18.6]} 14... Na5 {[%clk 0:02:21.2]} 15. Bf2 {[%clk 0:02:16.1]} 15...
Nc7 {[%clk 0:02:19.1]} 16. h4 {[%clk 0:02:11.2]} 16... Nb5 {[%clk 0:02:17.6]}
17. Re1 {[%clk 0:02:01]} 17... Nc4 {[%clk 0:02:16.9]} 18. Qe2 {[%clk 0:01:53.6]}
18... Nxd4 {[%clk 0:02:09.5]} 19. Nxd4 {[%clk 0:01:51.3]} 19... b5 {[%clk
0:02:06.4]} 20. Rad1 {[%clk 0:01:41.1]} 20... b4 {[%clk 0:01:47.4]} 21. b3
{[%clk 0:01:19.4]} 21... Na3 {[%clk 0:01:40.1]} 22. cxb4 {[%clk 0:01:11.1]}
22... Bxb4 {[%clk 0:01:38.3]} 23. Rf1 {[%clk 0:01:10.9]} 23... Nb5 {[%clk
0:01:28.6]} 24. Qg4 {[%clk 0:00:55.2]} 24... Nxd4 {[%clk 0:01:26.3]} 25. Bxd4
{[%clk 0:00:54.5]} 25... Qa5 {[%clk 0:01:18.9]} 26. h5 {[%clk 0:00:41.6]} 26...
h6 {[%clk 0:01:17.6]} 27. Rf2 {[%clk 0:00:18.4]} 27... Bc5 {[%clk 0:01:13.9]}
28. Bf1 {[%clk 0:00:16.8]} 28... Bxd4 {[%clk 0:01:12.3]} 29. Rxd4 {[%clk
0:00:16.5]} 29... Rc1 {[%clk 0:01:10.5]} 30. Kg2 {[%clk 0:00:15.5]} 30... Rfc8
{[%clk 0:01:04.7]} 31. Bd3 {[%clk 0:00:14.4]} 31... Qc5 {[%clk 0:01:02.3]} 32.
f5 {[%clk 0:00:14.2]} 32... exf5 {[%clk 0:00:58]} 33. Bxf5 {[%clk 0:00:13.9]}
33... Bxf5 {[%clk 0:00:57.9]} 34. Rxf5 {[%clk 0:00:13.7]} 34... Rc2+ {[%clk
0:00:56]} 35. Kh3 {[%clk 0:00:13.3]} 35... Rxa2 {[%clk 0:00:49.1]} 36. Rf1
{[%clk 0:00:12.2]} 36... Qc2 {[%clk 0:00:48.3]} 37. Rdd1 {[%clk 0:00:12.1]}
37... Qh2# {[%clk 0:00:47.4]} 0-1

[Event "*** Titled Tuesday Blitz"]
[Site "Chess.com"]
[Date "2020.04.21"]
[Round "7"]
[White "Trankuilizer"]
[Black "Zubrrr"]
[Result "0-1"]
[WhiteElo "2509"]
[BlackElo "2671"]
[TimeControl "180+1"]
[EndTime "11:21:32 PDT"]
[Termination "Zubrrr won by resignation"]

1. e4 {[%clk 0:03:00.9]} 1... c5 {[%clk 0:02:59.8]} 2. c3 {[%clk 0:03:00.9]}
2... d5 {[%clk 0:03:00]} 3. exd5 {[%clk 0:03:00.8]} 3... Qxd5 {[%clk 0:03:00.9]}
4. d4 {[%clk 0:03:01.3]} 4... g6 {[%clk 0:03:01.4]} 5. Nf3 {[%clk 0:03:00.5]}
5... Bg7 {[%clk 0:03:01.8]} 6. Be3 {[%clk 0:03:00.6]} 6... Nf6 {[%clk
0:03:01.4]} 7. Na3 {[%clk 0:02:51.4]} 7... cxd4 {[%clk 0:03:00.7]} 8. Bc4 {[%clk
0:02:51.2]} 8... Qa5 {[%clk 0:02:56.8]} 9. Nxd4 {[%clk 0:02:38.2]} 9... O-O
{[%clk 0:02:54.7]} 10. O-O {[%clk 0:02:37.6]} 10... a6 {[%clk 0:02:48.6]} 11.
Qf3 {[%clk 0:02:23.4]} 11... Nbd7 {[%clk 0:02:42.8]} 12. Bb3 {[%clk 0:02:03]}
12... Ne5 {[%clk 0:02:30.8]} 13. Qe2 {[%clk 0:02:03.1]} 13... Neg4 {[%clk
0:02:16.5]} 14. Bd2 {[%clk 0:01:51.9]} 14... Qc7 {[%clk 0:01:48.3]} 15. Nf3
{[%clk 0:01:43.8]} 15... e5 {[%clk 0:01:48]} 16. h3 {[%clk 0:01:37.4]} 16... e4
{[%clk 0:01:45.8]} 17. hxg4 {[%clk 0:01:37.5]} 17... Bxg4 {[%clk 0:01:43.9]} 18.
Nc4 {[%clk 0:01:07.5]} 18... Rfe8 {[%clk 0:01:31.3]} 19. Be3 {[%clk 0:00:55.2]}
19... exf3 {[%clk 0:01:28.8]} 20. gxf3 {[%clk 0:00:55.2]} 20... Be6 {[%clk
0:00:57.9]} 21. Rfe1 {[%clk 0:00:28.2]} 21... Nd5 {[%clk 0:00:46.2]} 22. Rad1
{[%clk 0:00:24.5]} 22... Rad8 {[%clk 0:00:21.7]} 23. Bc1 {[%clk 0:00:15.6]}
23... Nf4 {[%clk 0:00:12]} 24. Rxd8 {[%clk 0:00:15.4]} 24... Nxe2+ {[%clk
0:00:11.4]} 25. Rxe2 {[%clk 0:00:14.4]} 25... Rxd8 {[%clk 0:00:12.3]} 0-1

[Event "*** Titled Tuesday Blitz"]
[Site "Chess.com"]
[Date "2020.04.21"]
[Round "7"]
[White "sergeikim"]
[Black "ChessicallyInclined"]
[Result "1-0"]
[WhiteElo "2437"]
[BlackElo "2578"]
[TimeControl "180+1"]
[EndTime "11:21:32 PDT"]
[Termination "sergeikim won by resignation"]

1. d4 {[%clk 0:03:00.9]} 1... Nf6 {[%clk 0:03:00.2]} 2. c4 {[%clk 0:03:00.6]}
2... e6 {[%clk 0:03:00.4]} 3. Nc3 {[%clk 0:03:00.5]} 3... Bb4 {[%clk 0:03:01]}
4. Qc2 {[%clk 0:03:00.5]} 4... d5 {[%clk 0:03:00.3]} 5. a3 {[%clk 0:02:59.7]}
5... Bxc3+ {[%clk 0:02:58.4]} 6. Qxc3 {[%clk 0:03:00.6]} 6... O-O {[%clk
0:02:57.9]} 7. Nf3 {[%clk 0:03:00.4]} 7... dxc4 {[%clk 0:02:55.9]} 8. Qxc4
{[%clk 0:02:59.8]} 8... b6 {[%clk 0:02:56.5]} 9. g3 {[%clk 0:02:59.9]} 9... Bb7
{[%clk 0:02:54.6]} 10. Bg2 {[%clk 0:02:58.8]} 10... Nbd7 {[%clk 0:02:54.8]} 11.
O-O {[%clk 0:02:57.3]} 11... c5 {[%clk 0:02:55.1]} 12. Rd1 {[%clk 0:02:56.4]}
12... Rc8 {[%clk 0:02:52.8]} 13. Bg5 {[%clk 0:02:55]} 13... h6 {[%clk
0:02:51.2]} 14. Bxf6 {[%clk 0:02:53]} 14... Qxf6 {[%clk 0:02:51]} 15. Qa4 {[%clk
0:02:42.1]} 15... Bc6 {[%clk 0:02:34.9]} 16. Qxa7 {[%clk 0:02:39.8]} 16... cxd4
{[%clk 0:01:58.8]} 17. Nxd4 {[%clk 0:02:33.6]} 17... Bxg2 {[%clk 0:01:57.5]} 18.
Kxg2 {[%clk 0:02:32.5]} 18... Rfd8 {[%clk 0:01:43.9]} 19. e3 {[%clk 0:02:11.3]}
19... e5 {[%clk 0:01:43.1]} 20. Nf3 {[%clk 0:02:04.5]} 20... Qc6 {[%clk
0:01:28.7]} 21. Rac1 {[%clk 0:01:56.7]} 21... Qxc1 {[%clk 0:01:27.3]} 22. Rxc1
{[%clk 0:01:56.3]} 22... Rxc1 {[%clk 0:01:28.2]} 23. Qb7 {[%clk 0:01:48.3]}
23... Rc2 {[%clk 0:01:19.7]} 24. b4 {[%clk 0:01:44.8]} 24... Kf8 {[%clk
0:00:54.9]} 25. h4 {[%clk 0:01:38.3]} 25... Ke8 {[%clk 0:00:54]} 26. Qe4 {[%clk
0:01:32.1]} 26... Rc1 {[%clk 0:00:48.6]} 27. Nxe5 {[%clk 0:01:28.8]} 27... Nxe5
{[%clk 0:00:49.5]} 28. Qxe5+ {[%clk 0:01:28.9]} 28... Kf8 {[%clk 0:00:49.9]} 29.
Qe4 {[%clk 0:01:24.6]} 29... g6 {[%clk 0:00:31.8]} 30. Qe5 {[%clk 0:01:17.4]}
30... Kg8 {[%clk 0:00:30.8]} 31. Qf6 {[%clk 0:01:15.9]} 31... Rd3 {[%clk
0:00:25.7]} 32. Qxb6 {[%clk 0:01:12]} 32... Rxa3 {[%clk 0:00:24.9]} 33. b5
{[%clk 0:01:07.9]} 33... Rb3 {[%clk 0:00:19.9]} 34. e4 {[%clk 0:01:04.9]} 34...
Rcb1 {[%clk 0:00:19.5]} 35. Qd8+ {[%clk 0:01:03.9]} 35... Kg7 {[%clk 0:00:19.3]}
36. e5 {[%clk 0:01:03.2]} 36... Rxb5 {[%clk 0:00:19.2]} 37. Qf6+ {[%clk
0:01:02.4]} 37... Kg8 {[%clk 0:00:09.1]} 38. e6 {[%clk 0:01:02.5]} 38... Rb7
{[%clk 0:00:07.5]} 39. exf7+ {[%clk 0:01:00]} 39... Kf8 {[%clk 0:00:07.6]} 40.
Qxg6 {[%clk 0:00:58.9]} 40... R1b6 {[%clk 0:00:07.8]} 41. Qg8+ {[%clk
0:00:58.3]} 41... Ke7 {[%clk 0:00:07.7]} 42. f8=Q+ {[%clk 0:00:58.4]} 1-0

[Event "*** Titled Tuesday Blitz"]
[Site "Chess.com"]
[Date "2020.04.21"]
[Round "7"]
[White "Bajecny"]
[Black "NastaJ"]
[Result "1-0"]
[WhiteElo "2371"]
[BlackElo "1912"]
[TimeControl "180+1"]
[EndTime "11:21:34 PDT"]
[Termination "Bajecny won by checkmate"]

1. d4 {[%clk 0:03:00.9]} 1... Nf6 {[%clk 0:00:30.1]} 2. Nf3 {[%clk 0:03:00.3]}
2... e6 {[%clk 0:00:30.1]} 3. c4 {[%clk 0:03:00.2]} 3... b6 {[%clk 0:00:30.1]}
4. a3 {[%clk 0:02:59.9]} 4... Bb7 {[%clk 0:00:31]} 5. Nc3 {[%clk 0:03:00.2]}
5... d5 {[%clk 0:00:30.7]} 6. cxd5 {[%clk 0:03:00.3]} 6... exd5 {[%clk 0:00:31]}
7. Qc2 {[%clk 0:03:00.7]} 7... Bd6 {[%clk 0:00:31.5]} 8. g3 {[%clk 0:02:58.9]}
8... O-O {[%clk 0:00:32.4]} 9. Bg2 {[%clk 0:02:59.2]} 9... Nbd7 {[%clk
0:00:32.7]} 10. O-O {[%clk 0:02:59.4]} 10... c5 {[%clk 0:00:30.1]} 11. Bf4
{[%clk 0:02:58.4]} 11... Bxf4 {[%clk 0:00:29.7]} 12. gxf4 {[%clk 0:02:59.3]}
12... c4 {[%clk 0:00:27.3]} 13. Ne5 {[%clk 0:02:57.3]} 13... Re8 {[%clk
0:00:23.5]} 14. b3 {[%clk 0:02:46.4]} 14... Rc8 {[%clk 0:00:20.1]} 15. bxc4
{[%clk 0:02:44.6]} 15... Nxe5 {[%clk 0:00:15.1]} 16. fxe5 {[%clk 0:02:45.5]}
16... Ne4 {[%clk 0:00:13.6]} 17. Nxe4 {[%clk 0:02:45]} 17... dxe4 {[%clk
0:00:13.4]} 18. Bxe4 {[%clk 0:02:45.8]} 18... Bxe4 {[%clk 0:00:13.1]} 19. Qxe4
{[%clk 0:02:46.7]} 19... Rxc4 {[%clk 0:00:13.5]} 20. e3 {[%clk 0:02:46.1]} 20...
Qg5+ {[%clk 0:00:12.9]} 21. Qg2 {[%clk 0:02:41.6]} 21... Qf5 {[%clk 0:00:09.9]}
22. Rfc1 {[%clk 0:02:38.7]} 22... Rec8 {[%clk 0:00:09.2]} 23. Rxc4 {[%clk
0:02:29.7]} 23... Rxc4 {[%clk 0:00:09]} 24. Rd1 {[%clk 0:02:25.5]} 24... Rc2
{[%clk 0:00:08.8]} 25. Qg3 {[%clk 0:02:02.3]} 25... h6 {[%clk 0:00:08.8]} 26. d5
{[%clk 0:02:01]} 26... Rc8 {[%clk 0:00:06.7]} 27. d6 {[%clk 0:01:59.3]} 27...
Rd8 {[%clk 0:00:07.2]} 28. Rc1 {[%clk 0:01:54.5]} 28... Qe6 {[%clk 0:00:05.4]}
29. h3 {[%clk 0:01:44.5]} 29... a6 {[%clk 0:00:05.3]} 30. Rc7 {[%clk 0:01:26.1]}
30... b5 {[%clk 0:00:04.9]} 31. Re7 {[%clk 0:01:19.5]} 31... Qa2 {[%clk
0:00:03.2]} 32. d7 {[%clk 0:01:15.9]} 32... Qa1+ {[%clk 0:00:02.4]} 33. Kg2
{[%clk 0:01:15.6]} 33... Kf8 {[%clk 0:00:03]} 34. Qh4 {[%clk 0:01:06]} 34...
Qxa3 {[%clk 0:00:03.2]} 35. Rxf7+ {[%clk 0:01:05.7]} 35... Kxf7 {[%clk
0:00:03.4]} 36. Qxd8 {[%clk 0:01:06.2]} 36... Qb3 {[%clk 0:00:02.1]} 37. Qe8#
{[%clk 0:01:05.8]} 1-0